[Event "*** Titled Tuesday Blitz"]
[Site "Chess.com"]
[Date "2020.02.04"]
[Round "7"]
[White "vinniethepooh"]
[Black "Kobalia"]
[Result "1-0"]
[WhiteElo "2793"]
[BlackElo "2658"]
[TimeControl "180+2"]
[EndTime "10:38:11 PST"]
[Termination "vinniethepooh won by resignation"]

1. d4 {[%clk 0:03:01.9]} 1... d5 {[%clk 0:03:00.1]} 2. c4 {[%clk 0:03:03.4]}
2... c6 {[%clk 0:03:00.3]} 3. cxd5 {[%clk 0:03:03.9]} 3... cxd5 {[%clk
0:03:00.7]} 4. Nc3 {[%clk 0:03:05.6]} 4... Nc6 {[%clk 0:03:00.8]} 5. Nf3 {[%clk
0:03:04.9]} 5... e6 {[%clk 0:03:00.4]} 6. Bf4 {[%clk 0:03:02.9]} 6... Bd6 {[%clk
0:02:59.6]} 7. Bg3 {[%clk 0:03:02.4]} 7... Nge7 {[%clk 0:02:59.3]} 8. e3 {[%clk
0:03:01.8]} 8... Nf5 {[%clk 0:02:59.3]} 9. Bd3 {[%clk 0:03:03.2]} 9... Nxg3
{[%clk 0:02:53.8]} 10. hxg3 {[%clk 0:03:05.1]} 10... h6 {[%clk 0:02:50.7]} 11.
g4 {[%clk 0:03:04.7]} 11... Be7 {[%clk 0:02:50.5]} 12. Qe2 {[%clk 0:02:51.9]}
12... Bd7 {[%clk 0:02:50.1]} 13. a3 {[%clk 0:02:46.8]} 13... Qb6 {[%clk
0:02:41.8]} 14. Rc1 {[%clk 0:02:37]} 14... Rc8 {[%clk 0:02:40.1]} 15. g5 {[%clk
0:02:34]} 15... h5 {[%clk 0:02:04.8]} 16. g6 {[%clk 0:02:05.9]} 16... f5 {[%clk
0:02:03.5]} 17. Bb5 {[%clk 0:01:54]} 17... Bf6 {[%clk 0:01:51.2]} 18. Na4 {[%clk
0:01:22]} 18... Qc7 {[%clk 0:01:03.2]} 19. Nc5 {[%clk 0:01:18.1]} 19... Ke7
{[%clk 0:01:03.7]} 20. Qd2 {[%clk 0:01:05.7]} 20... Be8 {[%clk 0:00:58.5]} 21.
a4 {[%clk 0:00:41.8]} 21... b6 {[%clk 0:00:54.1]} 22. Nd3 {[%clk 0:00:28.5]}
22... Qb8 {[%clk 0:00:40.2]} 23. b3 {[%clk 0:00:23]} 23... a5 {[%clk 0:00:26.4]}
24. Bxc6 {[%clk 0:00:12.5]} 24... Rxc6 {[%clk 0:00:25.3]} 25. Rxc6 {[%clk
0:00:11.2]} 25... Bxc6 {[%clk 0:00:25.1]} 26. Nfe5 {[%clk 0:00:13.1]} 26... Be8
{[%clk 0:00:20.6]} 27. Qc3 {[%clk 0:00:11.3]} 27... h4 {[%clk 0:00:19.1]} 28.
Ke2 {[%clk 0:00:11.3]} 28... Rh6 {[%clk 0:00:17.4]} 29. Rc1 {[%clk 0:00:12]}
29... h3 {[%clk 0:00:15.4]} 30. gxh3 {[%clk 0:00:12.2]} 30... Rxh3 {[%clk
0:00:15.5]} 31. Qc7+ {[%clk 0:00:09.9]} 31... Qxc7 {[%clk 0:00:15.1]} 32. Rxc7+
{[%clk 0:00:11.8]} 32... Kd8 {[%clk 0:00:14.9]} 33. Rb7 {[%clk 0:00:12.9]} 33...
Rh6 {[%clk 0:00:03.6]} 34. Rxb6 {[%clk 0:00:10.3]} 34... Bxg6 {[%clk 0:00:04]}
35. Nxg6 {[%clk 0:00:09.4]} 35... Rxg6 {[%clk 0:00:04.6]} 36. Rxe6 {[%clk
0:00:11]} 36... Rg1 {[%clk 0:00:04.4]} 37. Rd6+ {[%clk 0:00:11.2]} 37... Ke7
{[%clk 0:00:04.5]} 38. Rxd5 {[%clk 0:00:12.8]} 38... Rb1 {[%clk 0:00:05.7]} 39.
Rxf5 {[%clk 0:00:10.7]} 39... Rxb3 {[%clk 0:00:05.5]} 40. Rxa5 {[%clk
0:00:12.3]} 40... Ra3 {[%clk 0:00:06.7]} 41. Ra7+ {[%clk 0:00:13.3]} 41... Kd6
{[%clk 0:00:06.8]} 42. a5 {[%clk 0:00:10.6]} 42... Kc6 {[%clk 0:00:07.5]} 43.
Nc5 {[%clk 0:00:08]} 43... Ra2+ {[%clk 0:00:07.5]} 44. Kf3 {[%clk 0:00:08.7]}
44... Bh4 {[%clk 0:00:08.2]} 45. Ne4 {[%clk 0:00:07.5]} 45... g5 {[%clk
0:00:08.8]} 46. Rg7 {[%clk 0:00:07.2]} 46... Rxa5 {[%clk 0:00:08.3]} 47. Rg6+
{[%clk 0:00:08.7]} 47... Kd7 {[%clk 0:00:08.7]} 48. Nc5+ {[%clk 0:00:08.9]}
48... Ke7 {[%clk 0:00:08.4]} 49. Ne4 {[%clk 0:00:06.8]} 49... Kf7 {[%clk
0:00:06.2]} 50. Rf6+ {[%clk 0:00:07.3]} 50... Kg7 {[%clk 0:00:06.2]} 51. Rc6
{[%clk 0:00:08.8]} 51... Ra2 {[%clk 0:00:05.7]} 52. Kg4 {[%clk 0:00:09.6]} 52...
Bxf2 {[%clk 0:00:05.8]} 53. Nxf2 {[%clk 0:00:10.9]} 53... Rxf2 {[%clk
0:00:06.2]} 54. Kxg5 {[%clk 0:00:12.1]} 54... Kf7 {[%clk 0:00:06.2]} 55. e4
{[%clk 0:00:11.5]} 55... Ke7 {[%clk 0:00:04.9]} 56. e5 {[%clk 0:00:10.5]} 56...
Rd2 {[%clk 0:00:03.4]} 57. Rd6 {[%clk 0:00:11]} 57... Rf2 {[%clk 0:00:04]} 58.
Kg4 {[%clk 0:00:10.6]} 58... Rf1 {[%clk 0:00:04.6]} 59. Kg5 {[%clk 0:00:10.2]}
59... Rf2 {[%clk 0:00:05.5]} 60. d5 {[%clk 0:00:08.2]} 60... Rf1 {[%clk
0:00:03.9]} 61. Re6+ {[%clk 0:00:09.3]} 61... Kd7 {[%clk 0:00:04.2]} 62. Rf6
{[%clk 0:00:10.5]} 62... Re1 {[%clk 0:00:03.1]} 63. Kf5 {[%clk 0:00:11.6]} 63...
Rf1+ {[%clk 0:00:04.2]} 64. Kg6 {[%clk 0:00:12.7]} 64... Re1 {[%clk 0:00:05.4]}
65. Rf5 {[%clk 0:00:13.2]} 65... Ke7 {[%clk 0:00:05.5]} 66. Rf7+ {[%clk
0:00:13.9]} 66... Ke8 {[%clk 0:00:05.6]} 67. e6 {[%clk 0:00:14.5]} 67... Rg1+
{[%clk 0:00:05.4]} 68. Kf6 {[%clk 0:00:15.9]} 68... Rf1+ {[%clk 0:00:06]} 69.
Ke5 {[%clk 0:00:17.4]} 69... Rxf7 {[%clk 0:00:03.4]} 70. exf7+ {[%clk
0:00:19.3]} 70... Ke7 {[%clk 0:00:04.7]} 71. f8=Q+ {[%clk 0:00:19.2]} 71... Kxf8
{[%clk 0:00:05.6]} 72. Kd6 {[%clk 0:00:21.1]} 1-0

[Event "*** Titled Tuesday Blitz"]
[Site "Chess.com"]
[Date "2020.02.04"]
[Round "7"]
[White "MFBerna"]
[Black "kinga2008"]
[Result "1/2-1/2"]
[WhiteElo "2330"]
[BlackElo "1959"]
[TimeControl "180+2"]
[EndTime "10:39:31 PST"]
[Termination "Game drawn by agreement"]

1. d4 {[%clk 0:03:01.9]} 1... g6 {[%clk 0:02:59.5]} 2. e4 {[%clk 0:03:02.4]}
2... Bg7 {[%clk 0:02:59.2]} 3. Nf3 {[%clk 0:03:03.2]} 3... d6 {[%clk 0:02:55.4]}
4. Nc3 {[%clk 0:03:03.5]} 4... Nf6 {[%clk 0:02:55.8]} 5. h3 {[%clk 0:03:04.1]}
5... O-O {[%clk 0:02:56.5]} 6. Be3 {[%clk 0:03:04.2]} 6... e5 {[%clk 0:02:56]}
7. dxe5 {[%clk 0:03:05]} 7... dxe5 {[%clk 0:02:55.2]} 8. Nxe5 {[%clk 0:02:58.4]}
8... Nxe4 {[%clk 0:02:48]} 9. Qxd8 {[%clk 0:02:45.3]} 9... Rxd8 {[%clk
0:02:45.3]} 10. Nxe4 {[%clk 0:02:37.5]} 10... Bxe5 {[%clk 0:02:45.2]} 11. Bg5
{[%clk 0:02:32.2]} 11... Re8 {[%clk 0:02:39.9]} 12. O-O-O {[%clk 0:02:14.6]}
12... Nc6 {[%clk 0:02:34.7]} 13. Nf6+ {[%clk 0:02:09.3]} 13... Bxf6 {[%clk
0:02:33.7]} 14. Bxf6 {[%clk 0:02:11.2]} 14... Be6 {[%clk 0:02:32.4]} 15. Bb5
{[%clk 0:02:08.4]} 15... Bf5 {[%clk 0:02:15]} 16. h4 {[%clk 0:01:57.7]} 16...
Re6 {[%clk 0:02:08.3]} 17. Bc3 {[%clk 0:01:55.3]} 17... Ne5 {[%clk 0:02:02.4]}
18. f3 {[%clk 0:01:42.9]} 18... c6 {[%clk 0:01:57.9]} 19. Ba4 {[%clk 0:01:42.3]}
19... h5 {[%clk 0:01:34.7]} 20. Bb3 {[%clk 0:01:42.3]} 20... Re7 {[%clk
0:01:29.3]} 21. Rhe1 {[%clk 0:01:32.6]} 21... Rae8 {[%clk 0:01:25.5]} 22. Bb4
{[%clk 0:01:06.1]} 22... c5 {[%clk 0:01:25.8]} 23. Ba4 {[%clk 0:00:19.5]} 23...
Rc8 {[%clk 0:00:36.7]} 24. Bc3 {[%clk 0:00:15.1]} 24... Nc6 {[%clk 0:00:16.6]}
25. Rxe7 {[%clk 0:00:10.3]} 25... Nxe7 {[%clk 0:00:16.8]} 26. Bf6 {[%clk
0:00:11.6]} 26... Nc6 {[%clk 0:00:14.1]} 27. c3 {[%clk 0:00:10.8]} 27... a6
{[%clk 0:00:09.1]} 28. Bb3 {[%clk 0:00:10.7]} 28... Na5 {[%clk 0:00:09.3]} 29.
Bd5 {[%clk 0:00:09.2]} 29... Be6 {[%clk 0:00:10]} 30. Bxe6 {[%clk 0:00:08]}
30... fxe6 {[%clk 0:00:10.9]} 31. Rd7 {[%clk 0:00:09.9]} 31... Kf8 {[%clk
0:00:04.7]} 32. Rh7 {[%clk 0:00:10.1]} 32... Re8 {[%clk 0:00:04]} 33. Be5 {[%clk
0:00:10.3]} 33... Kg8 {[%clk 0:00:04.4]} 34. Rg7+ {[%clk 0:00:10.7]} 34... Kf8
{[%clk 0:00:05.8]} 35. Rxg6 {[%clk 0:00:12.6]} 35... Nc6 {[%clk 0:00:07.2]} 36.
Bd6+ {[%clk 0:00:13.2]} 36... Kf7 {[%clk 0:00:08.2]} 37. Rh6 {[%clk 0:00:14.9]}
37... Rd8 {[%clk 0:00:08]} 38. Bxc5 {[%clk 0:00:15.6]} 38... Ne5 {[%clk
0:00:06.9]} 39. Rxh5 {[%clk 0:00:14.2]} 39... Rd5 {[%clk 0:00:04.4]} 40. Bd4
{[%clk 0:00:14]} 40... Nd3+ {[%clk 0:00:05.1]} 41. Kd2 {[%clk 0:00:15]} 41...
Rxh5 {[%clk 0:00:05.3]} 42. Kxd3 {[%clk 0:00:16]} 42... Rxh4 {[%clk 0:00:07.2]}
43. g4 {[%clk 0:00:15.3]} 43... Rh2 {[%clk 0:00:07.1]} 44. c4 {[%clk 0:00:15.4]}
44... Ke7 {[%clk 0:00:03.6]} 45. a3 {[%clk 0:00:15.5]} 45... Kd6 {[%clk
0:00:05.2]} 46. b4 {[%clk 0:00:15.3]} 46... e5 {[%clk 0:00:05.7]} 47. Bc5+
{[%clk 0:00:15.3]} 47... Ke6 {[%clk 0:00:06.5]} 48. Ke4 {[%clk 0:00:17.2]} 48...
Re2+ {[%clk 0:00:05.9]} 49. Kd3 {[%clk 0:00:18.7]} 49... Ra2 {[%clk 0:00:07.2]}
50. b5 {[%clk 0:00:20.1]} 50... axb5 {[%clk 0:00:05.3]} 51. cxb5 {[%clk
0:00:22]} 51... Kd5 {[%clk 0:00:06.1]} 52. Bb4 {[%clk 0:00:22.8]} 52... b6
{[%clk 0:00:04.2]} 53. Ke3 {[%clk 0:00:23.4]} 53... Rb2 {[%clk 0:00:03.2]} 54.
g5 {[%clk 0:00:23.1]} 54... Rg2 {[%clk 0:00:03.5]} 55. Be7 {[%clk 0:00:24]}
55... Rb2 {[%clk 0:00:03]} 56. Bb4 {[%clk 0:00:22.4]} 56... Rg2 {[%clk
0:00:02.4]} 57. Be7 {[%clk 0:00:23.1]} 57... Ke6 {[%clk 0:00:03.7]} 58. Bd8
{[%clk 0:00:22.8]} 58... Kf5 {[%clk 0:00:04.2]} 59. Bxb6 {[%clk 0:00:18]} 59...
Rb2 {[%clk 0:00:05.1]} 60. a4 {[%clk 0:00:18.4]} 60... Rb4 {[%clk 0:00:06.6]}
61. g6 {[%clk 0:00:13.2]} 61... Rxa4 {[%clk 0:00:05.9]} 62. g7 {[%clk
0:00:13.2]} 62... Ra8 {[%clk 0:00:07.1]} 63. Bc5 {[%clk 0:00:13.6]} 63... Kg6
{[%clk 0:00:06.8]} 64. Bf8 {[%clk 0:00:14.3]} 64... Kf7 {[%clk 0:00:08]} 65. Ke4
{[%clk 0:00:14.3]} 65... Rb8 {[%clk 0:00:08]} 66. Kxe5 {[%clk 0:00:08.2]} 66...
Rxb5+ {[%clk 0:00:08.6]} 67. Kf4 {[%clk 0:00:10.1]} 67... Ra5 {[%clk 0:00:07.2]}
68. Kg4 {[%clk 0:00:11]} 68... Ra1 {[%clk 0:00:07.1]} 69. f4 {[%clk 0:00:11.7]}
69... Ra5 {[%clk 0:00:05.8]} 70. f5 {[%clk 0:00:10.1]} 70... Ra1 {[%clk
0:00:05.7]} 71. Bc5 {[%clk 0:00:08.1]} 71... Ra4+ {[%clk 0:00:04.3]} 72. Kg5
{[%clk 0:00:08.8]} 72... Kxg7 {[%clk 0:00:05.5]} 73. Bd6 {[%clk 0:00:08.8]}
73... Kf7 {[%clk 0:00:05.9]} 74. Be5 {[%clk 0:00:06.9]} 74... Ra5 {[%clk
0:00:06.3]} 75. Bd4 {[%clk 0:00:07.2]} 75... Ra4 {[%clk 0:00:05.1]} 76. Be5
{[%clk 0:00:08.1]} 76... Re4 {[%clk 0:00:05.9]} 77. Bc3 {[%clk 0:00:08.2]} 77...
Re3 {[%clk 0:00:06.4]} 78. Bd2 {[%clk 0:00:08.7]} 78... Re2 {[%clk 0:00:07.4]}
79. Bc3 {[%clk 0:00:09.3]} 79... Rc2 {[%clk 0:00:07.7]} 80. Bd4 {[%clk
0:00:10.3]} 80... Rg2+ {[%clk 0:00:08.2]} 81. Kf4 {[%clk 0:00:10.9]} 81... Rd2
{[%clk 0:00:08.8]} 82. Bc3 {[%clk 0:00:09.8]} 82... Rc2 {[%clk 0:00:08.9]} 83.
Bd4 {[%clk 0:00:10.6]} 83... Rc4 {[%clk 0:00:10.2]} 84. Ke4 {[%clk 0:00:11.4]}
84... Rc1 {[%clk 0:00:11.1]} 85. Be3 {[%clk 0:00:12.2]} 85... Re1 {[%clk
0:00:12]} 86. Kf4 {[%clk 0:00:13]} 86... Kf6 {[%clk 0:00:08.9]} 87. Bd4+ {[%clk
0:00:13.5]} 87... Kf7 {[%clk 0:00:10.1]} 88. Bc3 {[%clk 0:00:13.6]} 88... Rc1
{[%clk 0:00:09.3]} 89. Bd4 {[%clk 0:00:13.6]} 89... Rc4 {[%clk 0:00:08.9]} 90.
Ke4 {[%clk 0:00:14.6]} 1/2-1/2

[Event "*** Titled Tuesday Blitz"]
[Site "Chess.com"]
[Date "2020.02.04"]
[Round "8"]
[White "obliviate12"]
[Black "Snegokhod"]
[Result "1-0"]
[WhiteElo "2869"]
[BlackElo "2636"]
[TimeControl "180+2"]
[EndTime "10:52:22 PST"]
[Termination "obliviate12 won by resignation"]

1. e4 {[%clk 0:02:47.5]} 1... c6 {[%clk 0:02:58.8]} 2. d4 {[%clk 0:02:47.2]}
2... d5 {[%clk 0:02:59.2]} 3. e5 {[%clk 0:02:44.2]} 3... c5 {[%clk 0:02:59]} 4.
Nf3 {[%clk 0:02:43.9]} 4... cxd4 {[%clk 0:02:50.9]} 5. Nxd4 {[%clk 0:02:45.6]}
5... e6 {[%clk 0:02:52.1]} 6. Nd2 {[%clk 0:02:28.2]} 6... Nc6 {[%clk 0:02:52]}
7. Nxc6 {[%clk 0:02:25.7]} 7... bxc6 {[%clk 0:02:52.5]} 8. Bd3 {[%clk
0:02:27.6]} 8... g6 {[%clk 0:02:39.1]} 9. O-O {[%clk 0:02:26.5]} 9... Bg7 {[%clk
0:02:39.8]} 10. Nf3 {[%clk 0:02:04.8]} 10... Ne7 {[%clk 0:02:35.7]} 11. b3
{[%clk 0:02:00.4]} 11... c5 {[%clk 0:02:33.9]} 12. Re1 {[%clk 0:02:00.3]} 12...
Qb6 {[%clk 0:02:18.8]} 13. Bg5 {[%clk 0:01:57.2]} 13... Nc6 {[%clk 0:02:14.4]}
14. Bf6 {[%clk 0:01:49]} 14... Bxf6 {[%clk 0:02:12.3]} 15. exf6 {[%clk
0:01:50.9]} 15... Ba6 {[%clk 0:02:08.3]} 16. Bxa6 {[%clk 0:01:47.9]} 16... Qxa6
{[%clk 0:02:09.3]} 17. Qxd5 {[%clk 0:01:49.4]} 17... O-O {[%clk 0:02:02]} 18.
Qg5 {[%clk 0:01:44.5]} 1-0

[Event "*** Titled Tuesday Blitz"]
[Site "Chess.com"]
[Date "2020.02.04"]
[Round "8"]
[White "dretch"]
[Black "FairChess_on_YouTube"]
[Result "1-0"]
[WhiteElo "2860"]
[BlackElo "3021"]
[TimeControl "180+2"]
[EndTime "10:53:03 PST"]
[Termination "dretch won by resignation"]

1. d4 {[%clk 0:03:01.9]} 1... Nf6 {[%clk 0:03:00.6]} 2. c4 {[%clk 0:03:03.1]}
2... e6 {[%clk 0:03:01.1]} 3. Nc3 {[%clk 0:03:03.7]} 3... Bb4 {[%clk 0:03:01.7]}
4. Qc2 {[%clk 0:03:04.6]} 4... O-O {[%clk 0:03:01.4]} 5. e4 {[%clk 0:03:02.9]}
5... d6 {[%clk 0:03:01.7]} 6. a3 {[%clk 0:03:00.3]} 6... Bxc3+ {[%clk
0:03:02.3]} 7. bxc3 {[%clk 0:03:02.2]} 7... e5 {[%clk 0:03:03.6]} 8. Bd3 {[%clk
0:03:03.2]} 8... c5 {[%clk 0:03:04.1]} 9. Ne2 {[%clk 0:03:03.9]} 9... Nc6 {[%clk
0:03:05]} 10. d5 {[%clk 0:03:04.3]} 10... Na5 {[%clk 0:03:05.8]} 11. O-O {[%clk
0:03:03.6]} 11... b6 {[%clk 0:03:04]} 12. Ng3 {[%clk 0:03:01.3]} 12... Ne8
{[%clk 0:03:01.1]} 13. f4 {[%clk 0:03:01.3]} 13... f6 {[%clk 0:03:02.3]} 14. Be3
{[%clk 0:02:58.6]} 14... Qd7 {[%clk 0:03:01]} 15. Rf3 {[%clk 0:02:54.9]} 15...
Ba6 {[%clk 0:03:01.3]} 16. Qe2 {[%clk 0:02:52.8]} 16... Qa4 {[%clk 0:03:02.1]}
17. Nf5 {[%clk 0:02:52.9]} 17... Bxc4 {[%clk 0:03:02]} 18. fxe5 {[%clk
0:02:51.9]} 18... dxe5 {[%clk 0:03:00.2]} 19. Raf1 {[%clk 0:02:48.2]} 19... Bxd3
{[%clk 0:02:58]} 20. Qxd3 {[%clk 0:02:48.2]} 20... Qc4 {[%clk 0:02:59.1]} 21.
Qd1 {[%clk 0:02:45.6]} 21... Qxe4 {[%clk 0:02:55.4]} 22. d6 {[%clk 0:02:43.7]}
22... Rd8 {[%clk 0:02:49.5]} 23. d7 {[%clk 0:02:36.2]} 23... Nc7 {[%clk
0:02:50.4]} 24. Qd6 {[%clk 0:02:28.5]} 24... Nd5 {[%clk 0:02:38.5]} 25. Qe6+
{[%clk 0:01:38.9]} 25... Kh8 {[%clk 0:02:38.7]} 26. Nd6 {[%clk 0:01:39.4]} 26...
Nc7 {[%clk 0:02:26.8]} 27. Nf7+ {[%clk 0:01:29.1]} 27... Kg8 {[%clk 0:01:54.9]}
28. Nh6+ {[%clk 0:01:28.5]} 28... Kh8 {[%clk 0:01:56.5]} 29. Qg8+ {[%clk
0:01:29.5]} 1-0

[Event "*** Titled Tuesday Blitz"]
[Site "Chess.com"]
[Date "2020.02.04"]
[Round "8"]
[White "riconaipe"]
[Black "victormago"]
[Result "0-1"]
[WhiteElo "2518"]
[BlackElo "2429"]
[TimeControl "180+2"]
[EndTime "10:53:34 PST"]
[Termination "victormago won by resignation"]

1. d4 {[%clk 0:02:59.8]} 1... Nf6 {[%clk 0:03:00.6]} 2. c4 {[%clk 0:03:00.7]}
2... c5 {[%clk 0:03:01.4]} 3. d5 {[%clk 0:03:01.7]} 3... e6 {[%clk 0:03:02.9]}
4. Nc3 {[%clk 0:03:02.4]} 4... exd5 {[%clk 0:03:04.2]} 5. cxd5 {[%clk
0:03:04.3]} 5... d6 {[%clk 0:03:05.5]} 6. e4 {[%clk 0:03:06.2]} 6... g6 {[%clk
0:03:06.5]} 7. Nge2 {[%clk 0:03:07.5]} 7... Bg7 {[%clk 0:03:06.9]} 8. Ng3 {[%clk
0:03:09.1]} 8... h5 {[%clk 0:03:01.9]} 9. Be2 {[%clk 0:03:10]} 9... a6 {[%clk
0:02:58.7]} 10. a4 {[%clk 0:03:10.6]} 10... Nbd7 {[%clk 0:02:59.5]} 11. O-O
{[%clk 0:03:11.5]} 11... Qe7 {[%clk 0:02:58.5]} 12. f3 {[%clk 0:03:12.3]} 12...
O-O {[%clk 0:02:58]} 13. Be3 {[%clk 0:03:13]} 13... Ne5 {[%clk 0:02:55.8]} 14.
Qd2 {[%clk 0:03:14.1]} 14... Re8 {[%clk 0:02:50.6]} 15. Nh1 {[%clk 0:03:14.5]}
15... Nh7 {[%clk 0:02:49.9]} 16. Nf2 {[%clk 0:03:15.5]} 16... f5 {[%clk
0:02:49.8]} 17. Rae1 {[%clk 0:03:12]} 17... Bd7 {[%clk 0:02:47.4]} 18. exf5
{[%clk 0:03:11.7]} 18... gxf5 {[%clk 0:02:43.5]} 19. Nh3 {[%clk 0:03:12.8]}
19... Qf7 {[%clk 0:02:39.1]} 20. Kh1 {[%clk 0:03:10.9]} 20... Rab8 {[%clk
0:02:31.8]} 21. f4 {[%clk 0:02:52.4]} 21... Ng4 {[%clk 0:02:30.6]} 22. Bg1
{[%clk 0:02:53.6]} 22... b5 {[%clk 0:02:28.6]} 23. axb5 {[%clk 0:02:53.9]} 23...
axb5 {[%clk 0:02:30.5]} 24. Bxg4 {[%clk 0:02:47.8]} 24... hxg4 {[%clk
0:02:30.6]} 25. Rxe8+ {[%clk 0:02:48.8]} 25... Rxe8 {[%clk 0:02:30.3]} 26. Ng5
{[%clk 0:02:49.9]} 26... Nxg5 {[%clk 0:02:28.8]} 27. fxg5 {[%clk 0:02:51.3]}
27... Qg6 {[%clk 0:02:25.2]} 28. Be3 {[%clk 0:02:45]} 28... Be5 {[%clk
0:02:10.1]} 29. Bf4 {[%clk 0:02:45.6]} 29... b4 {[%clk 0:01:54.6]} 30. Nd1
{[%clk 0:02:45.6]} 30... Bb5 {[%clk 0:01:52]} 31. Rf2 {[%clk 0:02:42]} 31...
Bxf4 {[%clk 0:01:48.2]} 32. Rxf4 {[%clk 0:02:42.2]} 32... Qxg5 {[%clk
0:01:48.1]} 33. h3 {[%clk 0:02:18.1]} 33... Re2 {[%clk 0:01:19.3]} 34. Rxg4
{[%clk 0:02:07.7]} 34... Qxg4 {[%clk 0:01:19.4]} 0-1

[Event "*** Titled Tuesday Blitz"]
[Site "Chess.com"]
[Date "2020.02.04"]
[Round "8"]
[White "Tayson_7"]
[Black "bazar-wokzal"]
[Result "1-0"]
[WhiteElo "2669"]
[BlackElo "2544"]
[TimeControl "180+2"]
[EndTime "10:53:41 PST"]
[Termination "Tayson_7 won by resignation"]

1. e4 {[%clk 0:03:01.9]} 1... c5 {[%clk 0:02:59]} 2. Nf3 {[%clk 0:03:01.3]} 2...
d6 {[%clk 0:03:00.2]} 3. d4 {[%clk 0:03:02.1]} 3... cxd4 {[%clk 0:03:01.5]} 4.
Nxd4 {[%clk 0:03:04]} 4... Nf6 {[%clk 0:03:02.8]} 5. Nc3 {[%clk 0:03:05.3]} 5...
g6 {[%clk 0:03:04.3]} 6. f3 {[%clk 0:03:01.7]} 6... Bg7 {[%clk 0:03:05]} 7. Be3
{[%clk 0:03:03.2]} 7... a6 {[%clk 0:03:05.8]} 8. g4 {[%clk 0:03:02.8]} 8... b5
{[%clk 0:03:06.1]} 9. Qd2 {[%clk 0:03:03.7]} 9... h5 {[%clk 0:03:02.3]} 10. g5
{[%clk 0:03:04]} 10... Nfd7 {[%clk 0:03:03.1]} 11. O-O-O {[%clk 0:03:03.9]}
11... Bb7 {[%clk 0:03:03.8]} 12. Kb1 {[%clk 0:02:56.3]} 12... Nb6 {[%clk
0:02:59.6]} 13. f4 {[%clk 0:02:52]} 13... b4 {[%clk 0:02:56.4]} 14. Nd5 {[%clk
0:02:47.3]} 14... Nxd5 {[%clk 0:02:50.3]} 15. exd5 {[%clk 0:02:49.2]} 15... Bxd5
{[%clk 0:02:50.9]} 16. Bg2 {[%clk 0:02:50.9]} 16... Qa5 {[%clk 0:02:44]} 17. Nb3
{[%clk 0:02:38.4]} 17... Bxb3 {[%clk 0:02:44]} 18. axb3 {[%clk 0:02:40.3]} 18...
O-O {[%clk 0:02:39.9]} 19. Bxa8 {[%clk 0:02:39.7]} 19... Nd7 {[%clk 0:02:40.8]}
20. Bc6 {[%clk 0:02:33.5]} 20... Nc5 {[%clk 0:02:37.1]} 21. Bf2 {[%clk
0:02:30.8]} 21... Rc8 {[%clk 0:02:33.3]} 22. Bxc5 {[%clk 0:02:07.1]} 22... Qxc5
{[%clk 0:02:28]} 23. Be4 {[%clk 0:02:07.8]} 23... a5 {[%clk 0:02:18]} 24. Qd5
{[%clk 0:02:06.3]} 24... Qc7 {[%clk 0:02:10.2]} 25. Qb7 {[%clk 0:02:02]} 25...
Qd8 {[%clk 0:02:04.5]} 26. Bc6 {[%clk 0:01:57.9]} 26... Rc7 {[%clk 0:02:02.8]}
27. Qa6 {[%clk 0:01:47.3]} 27... Qb8 {[%clk 0:01:54]} 28. Qa8 {[%clk 0:01:46.9]}
28... Qxa8 {[%clk 0:01:48.7]} 29. Bxa8 {[%clk 0:01:48.8]} 29... Bf8 {[%clk
0:01:47.1]} 30. Rd5 {[%clk 0:01:43.3]} 30... Ra7 {[%clk 0:01:47]} 31. Bc6 {[%clk
0:01:44.4]} 31... e6 {[%clk 0:01:48.1]} 32. Rb5 {[%clk 0:01:44.6]} 32... d5
{[%clk 0:01:48.8]} 33. Rb7 {[%clk 0:01:42.3]} 33... Ra6 {[%clk 0:01:48.4]} 34.
Be8 {[%clk 0:01:43.4]} 1-0

[Event "*** Titled Tuesday Blitz"]
[Site "Chess.com"]
[Date "2020.02.04"]
[Round "8"]
[White "Gordima"]
[Black "crescentmoon2411"]
[Result "1-0"]
[WhiteElo "2810"]
[BlackElo "2936"]
[TimeControl "180+2"]
[EndTime "10:54:04 PST"]
[Termination "Gordima won by resignation"]

1. d4 {[%clk 0:02:57.6]} 1... Nf6 {[%clk 0:03:00.7]} 2. Nf3 {[%clk 0:02:59.1]}
2... g6 {[%clk 0:03:00.8]} 3. Bg5 {[%clk 0:02:59.9]} 3... Bg7 {[%clk 0:03:01.1]}
4. Nbd2 {[%clk 0:03:01.4]} 4... d5 {[%clk 0:03:00.9]} 5. e3 {[%clk 0:03:01.8]}
5... O-O {[%clk 0:03:01.5]} 6. Bd3 {[%clk 0:03:01.8]} 6... Nbd7 {[%clk
0:02:57.3]} 7. c3 {[%clk 0:02:58.9]} 7... c5 {[%clk 0:02:52.1]} 8. O-O {[%clk
0:02:57.9]} 8... b6 {[%clk 0:02:49.2]} 9. h3 {[%clk 0:02:57]} 9... Bb7 {[%clk
0:02:49.7]} 10. Bf4 {[%clk 0:02:57.7]} 10... Ne4 {[%clk 0:02:32.6]} 11. Qe2
{[%clk 0:02:56]} 11... Nxd2 {[%clk 0:02:27.7]} 12. Qxd2 {[%clk 0:02:56.3]} 12...
e6 {[%clk 0:02:24.6]} 13. a4 {[%clk 0:02:55.4]} 13... a6 {[%clk 0:02:21.2]} 14.
a5 {[%clk 0:02:54.2]} 14... c4 {[%clk 0:02:20]} 15. Bc2 {[%clk 0:02:53.1]} 15...
b5 {[%clk 0:02:21]} 16. Bd6 {[%clk 0:02:28.7]} 16... Re8 {[%clk 0:02:21.6]} 17.
Rfe1 {[%clk 0:02:28.9]} 17... Rc8 {[%clk 0:02:09]} 18. Ne5 {[%clk 0:02:24.9]}
18... Nxe5 {[%clk 0:02:07]} 19. dxe5 {[%clk 0:02:25.5]} 19... f6 {[%clk
0:01:44.1]} 20. exf6 {[%clk 0:02:11.4]} 20... Qxf6 {[%clk 0:01:40.4]} 21. Bb4
{[%clk 0:02:08.8]} 21... e5 {[%clk 0:01:39.9]} 22. b3 {[%clk 0:02:01.3]} 22...
d4 {[%clk 0:01:30]} 23. exd4 {[%clk 0:01:59.5]} 23... exd4 {[%clk 0:01:31.9]}
24. cxd4 {[%clk 0:01:53.4]} 24... Qxd4 {[%clk 0:01:30.5]} 25. Qxd4 {[%clk
0:01:39.1]} 25... Bxd4 {[%clk 0:01:32.4]} 26. Rxe8+ {[%clk 0:01:40.5]} 26...
Rxe8 {[%clk 0:01:33]} 27. Rd1 {[%clk 0:01:42]} 27... Rd8 {[%clk 0:01:16.8]} 28.
Bc3 {[%clk 0:01:42.1]} 1-0